[Event "Titled Tuesday Blitz July 05 Late 2022"]
[White "Souleidis, Georgios"]
[Black "Manelyuk, Daniil"]
[WhiteFideId "4206827"]
[BlackFideId "44173920"]
[WhiteElo "2401"]
[BlackElo "2209"]
[Result "1-0"]
[Round "11"]
[TimeControl "180+1"]
[Date "2022.07.06"]
[WhiteClock "0:00:08"]
[BlackClock "0:00:15"]

1. e4 {[%clk 0:03:00]}  e6 {[%clk 0:02:59]} 2. d4 {[%clk 0:03:00]}  d5 {[%clk 0:02:59]} 3. exd5 {[%clk 0:03:00]}  exd5 {[%clk 0:02:58]} 4. Nf3 {[%clk 0:03:01]}  Bd6 {[%clk 0:02:58]} 5. c4 {[%clk 0:03:00]}  c6 {[%clk 0:02:51]} 6. c5 {[%clk 0:03:00]}  Bc7 {[%clk 0:02:51]} 7. Bd3 {[%clk 0:03:01]}  Ne7 {[%clk 0:02:52]} 8. Qc2 {[%clk 0:03:01]}  Nd7 {[%clk 0:02:50]} 9. Nc3 {[%clk 0:02:59]}  h6 {[%clk 0:02:50]} 10. Ne2 {[%clk 0:02:59]}  Nf6 {[%clk 0:02:49]} 11. Bf4 {[%clk 0:02:59]}  O-O {[%clk 0:02:49]} 12. Bxc7 {[%clk 0:02:55]}  Qxc7 {[%clk 0:02:47]} 13. O-O {[%clk 0:02:56]}  Bg4 {[%clk 0:02:47]} 14. Ne5 {[%clk 0:02:53]}  Bxe2 {[%clk 0:02:34]} 15. Qxe2 {[%clk 0:02:50]}  Rae8 {[%clk 0:02:33]} 16. Qc2 {[%clk 0:02:38]}  Nd7 {[%clk 0:02:29]} 17. f4 {[%clk 0:02:32]}  f6 {[%clk 0:02:23]} 18. Ng6 {[%clk 0:02:10]}  Nxg6 {[%clk 0:02:20]} 19. Bxg6 {[%clk 0:02:11]}  Re3 {[%clk 0:02:17]} 20. Qd2 {[%clk 0:02:06]}  Re4 {[%clk 0:02:08]} 21. Bxe4 {[%clk 0:02:04]}  dxe4 {[%clk 0:02:08]} 22. b4 {[%clk 0:02:01]}  f5 {[%clk 0:02:05]} 23. d5 {[%clk 0:02:02]}  Nf6 {[%clk 0:02:04]} 24. d6 {[%clk 0:02:01]}  Qd7 {[%clk 0:02:03]} 25. g3 {[%clk 0:01:57]}  Nd5 {[%clk 0:02:02]} 26. Qd4 {[%clk 0:01:54]}  Re8 {[%clk 0:01:56]} 27. Rfe1 {[%clk 0:01:52]}  e3 {[%clk 0:01:57]} 28. Rad1 {[%clk 0:01:41]}  Re4 {[%clk 0:01:57]} 29. Qb2 {[%clk 0:01:21]}  Rxb4 {[%clk 0:01:44]} 30. Qa3 {[%clk 0:01:21]}  Re4 {[%clk 0:01:20]} 31. Qxa7 {[%clk 0:01:19]}  g5 {[%clk 0:01:15]} 32. fxg5 {[%clk 0:00:59]}  hxg5 {[%clk 0:01:15]} 33. Qa3 {[%clk 0:00:33]}  f4 {[%clk 0:01:12]} 34. Qd3 {[%clk 0:00:33]}  Nf6 {[%clk 0:01:04]} 35. Qb3+ {[%clk 0:00:28]}  Kh7 {[%clk 0:01:02]} 36. Qd3 {[%clk 0:00:25]}  Kh6 {[%clk 0:00:57]} 37. Re2 {[%clk 0:00:22]}  Re5 {[%clk 0:00:48]} 38. gxf4 {[%clk 0:00:14]}  gxf4 {[%clk 0:00:47]} 39. Rg2 {[%clk 0:00:11]}  Ne4 {[%clk 0:00:33]} 40. Rf1 {[%clk 0:00:09]}  Qe6 {[%clk 0:00:20]} 41. d7 {[%clk 0:00:08]}  Rd5 {[%clk 0:00:20]} 42. d8=Q {[%clk 0:00:09]}  Rxd3 {[%clk 0:00:18]} 43. Qxd3 {[%clk 0:00:09]}  f3 {[%clk 0:00:15]} 44. Rxf3 {[%clk 0:00:09]}  Nf2 {[%clk 0:00:15]} 45. Qxe3+ {[%clk 0:00:08]} 1-0


[Site "https://www.chess.com"]

[Event "Titled Tuesday Blitz July 05 Late 2022"]
[White "Todorovic, Bojan"]
[Black "Przybylski, Wojciech"]
[WhiteFideId "917087"]
[BlackFideId "1117599"]
[WhiteElo "2266"]
[BlackElo "2133"]
[Result "0-1"]
[Round "11"]
[TimeControl "180+1"]
[Date "2022.07.06"]
[WhiteClock "0:00:19"]
[BlackClock "0:00:31"]

1. Nf3 {[%clk 0:02:59]}  Nf6 {[%clk 0:02:51]} 2. c4 {[%clk 0:02:59]}  c6 {[%clk 0:02:48]} 3. Nc3 {[%clk 0:02:55]}  d5 {[%clk 0:02:47]} 4. e3 {[%clk 0:02:51]}  Bg4 {[%clk 0:02:44]} 5. Qb3 {[%clk 0:02:48]}  Bxf3 {[%clk 0:02:29]} 6. Qxb7 {[%clk 0:02:43]}  Nbd7 {[%clk 0:02:28]} 7. gxf3 {[%clk 0:02:40]}  Ne5 {[%clk 0:02:26]} 8. cxd5 {[%clk 0:02:27]}  Rb8 {[%clk 0:02:26]} 9. Qa6 {[%clk 0:02:25]}  Nxf3+ {[%clk 0:02:23]} 10. Kd1 {[%clk 0:02:24]}  Rb6 {[%clk 0:02:20]} 11. Qe2 {[%clk 0:02:15]}  Ne5 {[%clk 0:02:18]} 12. f4 {[%clk 0:02:03]}  Ned7 {[%clk 0:02:10]} 13. dxc6 {[%clk 0:01:55]}  Rxc6 {[%clk 0:02:09]} 14. Bg2 {[%clk 0:01:52]}  Rb6 {[%clk 0:02:04]} 15. b3 {[%clk 0:01:44]}  e6 {[%clk 0:02:03]} 16. Bb2 {[%clk 0:01:43]}  Bb4 {[%clk 0:01:58]} 17. Rg1 {[%clk 0:01:30]}  O-O {[%clk 0:01:47]} 18. Ne4 {[%clk 0:01:22]}  Kh8 {[%clk 0:01:33]} 19. Rc1 {[%clk 0:01:15]}  Be7 {[%clk 0:01:27]} 20. Qd3 {[%clk 0:01:08]}  h6 {[%clk 0:00:52]} 21. Qd4 {[%clk 0:00:53]}  Rb5 {[%clk 0:00:44]} 22. Nc3 {[%clk 0:00:40]}  Rh5 {[%clk 0:00:41]} 23. Bc6 {[%clk 0:00:37]}  Bc5 {[%clk 0:00:36]} 24. Qa4 {[%clk 0:00:34]}  Nb6 {[%clk 0:00:34]} 25. Qxa7 {[%clk 0:00:19]}  Nc4 {[%clk 0:00:31]} 0-1


[Site "https://www.chess.com"]

[Event "Titled Tuesday Blitz July 05 Late 2022"]
[White "Urbina Perez, Juan Antonio"]
[Black "Oro, Luis"]
[WhiteFideId "2217368"]
[BlackFideId "104094"]
[WhiteElo "2192"]
[BlackElo "2378"]
[Result "1-0"]
[Round "11"]
[TimeControl "180+1"]
[Date "2022.07.06"]
[WhiteClock "0:00:55"]
[BlackClock "0:00:05"]

1. e4 {[%clk 0:03:00]}  c5 {[%clk 0:02:56]} 2. Nf3 {[%clk 0:03:00]}  d6 {[%clk 0:02:55]} 3. d4 {[%clk 0:03:00]}  cxd4 {[%clk 0:02:55]} 4. Nxd4 {[%clk 0:03:01]}  Nf6 {[%clk 0:02:55]} 5. Nc3 {[%clk 0:03:01]}  a6 {[%clk 0:02:52]} 6. Be3 {[%clk 0:03:02]}  e5 {[%clk 0:02:50]} 7. Nde2 {[%clk 0:03:02]}  Be7 {[%clk 0:02:48]} 8. f4 {[%clk 0:03:02]}  exf4 {[%clk 0:02:44]} 9. Nxf4 {[%clk 0:03:00]}  Nc6 {[%clk 0:02:44]} 10. Qd2 {[%clk 0:03:00]}  O-O {[%clk 0:02:43]} 11. O-O-O {[%clk 0:03:00]}  Ng4 {[%clk 0:02:36]} 12. Kb1 {[%clk 0:02:56]}  Nxe3 {[%clk 0:02:35]} 13. Qxe3 {[%clk 0:02:57]}  Ne5 {[%clk 0:02:31]} 14. Nfd5 {[%clk 0:02:54]}  Be6 {[%clk 0:02:28]} 15. Be2 {[%clk 0:02:53]}  b5 {[%clk 0:02:26]} 16. Qb6 {[%clk 0:02:41]}  Qxb6 {[%clk 0:02:18]} 17. Nxb6 {[%clk 0:02:42]}  Rad8 {[%clk 0:02:13]} 18. Nbd5 {[%clk 0:02:41]}  Bg5 {[%clk 0:02:13]} 19. h4 {[%clk 0:02:39]}  Bh6 {[%clk 0:02:11]} 20. a3 {[%clk 0:02:33]}  g6 {[%clk 0:02:10]} 21. Rhg1 {[%clk 0:02:26]}  Bg7 {[%clk 0:02:09]} 22. h5 {[%clk 0:02:25]}  Nc4 {[%clk 0:01:56]} 23. Bxc4 {[%clk 0:02:23]}  bxc4 {[%clk 0:01:56]} 24. Rh1 {[%clk 0:02:11]}  Rb8 {[%clk 0:01:54]} 25. hxg6 {[%clk 0:02:10]}  Bxd5 {[%clk 0:01:49]} 26. gxh7+ {[%clk 0:02:09]}  Kh8 {[%clk 0:01:48]} 27. Nxd5 {[%clk 0:02:08]}  Rxb2+ {[%clk 0:01:47]} 28. Kc1 {[%clk 0:02:08]}  Ra2 {[%clk 0:01:34]} 29. Kd2 {[%clk 0:02:05]}  Rxa3 {[%clk 0:01:32]} 30. Rdf1 {[%clk 0:02:03]}  Rg3 {[%clk 0:01:28]} 31. Rh2 {[%clk 0:01:59]}  Be5 {[%clk 0:01:28]} 32. Rf2 {[%clk 0:01:57]}  Rg7 {[%clk 0:01:26]} 33. Rh5 {[%clk 0:01:49]}  Rxh7 {[%clk 0:01:18]} 34. Rhf5 {[%clk 0:01:49]}  a5 {[%clk 0:01:16]} 35. Ke3 {[%clk 0:01:46]}  a4 {[%clk 0:01:14]} 36. c3 {[%clk 0:01:46]}  a3 {[%clk 0:01:08]} 37. Ra2 {[%clk 0:01:47]}  Ra8 {[%clk 0:01:08]} 38. Nb6 {[%clk 0:01:40]}  Ra6 {[%clk 0:00:56]} 39. Nxc4 {[%clk 0:01:40]}  Bxc3 {[%clk 0:00:56]} 40. Rxa3 {[%clk 0:01:38]}  Rxa3 {[%clk 0:00:56]} 41. Nxa3 {[%clk 0:01:39]}  Bb4 {[%clk 0:00:52]} 42. Nc4 {[%clk 0:01:36]}  Bc5+ {[%clk 0:00:53]} 43. Kf3 {[%clk 0:01:36]}  Kg7 {[%clk 0:00:48]} 44. Rg5+ {[%clk 0:01:28]}  Kf6 {[%clk 0:00:48]} 45. Rg8 {[%clk 0:01:26]}  Rh1 {[%clk 0:00:42]} 46. Na5 {[%clk 0:01:23]}  Rf1+ {[%clk 0:00:41]} 47. Kg3 {[%clk 0:01:21]}  Bd4 {[%clk 0:00:30]} 48. Nc6 {[%clk 0:01:19]}  Be3 {[%clk 0:00:25]} 49. Rg4 {[%clk 0:01:16]}  Ke6 {[%clk 0:00:24]} 50. Nb4 {[%clk 0:01:14]}  Bd4 {[%clk 0:00:21]} 51. Nd5 {[%clk 0:01:10]}  Be5+ {[%clk 0:00:21]} 52. Kh4 {[%clk 0:01:10]}  f6 {[%clk 0:00:19]} 53. Kh5 {[%clk 0:01:09]}  Rh1+ {[%clk 0:00:19]} 54. Kg6 {[%clk 0:01:09]}  Rh8 {[%clk 0:00:17]} 55. Ne3 {[%clk 0:01:02]}  Rg8+ {[%clk 0:00:15]} 56. Kh5 {[%clk 0:01:03]}  Rh8+ {[%clk 0:00:16]} 57. Kg6 {[%clk 0:01:00]}  Rg8+ {[%clk 0:00:15]} 58. Kh7 {[%clk 0:01:01]}  Rxg4 {[%clk 0:00:15]} 59. Nxg4 {[%clk 0:01:00]}  d5 {[%clk 0:00:05]} 60. exd5+ {[%clk 0:00:58]}  Kxd5 {[%clk 0:00:05]} 61. Kg6 {[%clk 0:00:55]} 1-0


[Site "https://www.chess.com"]

[Event "Titled Tuesday Blitz July 05 Late 2022"]
[White "Wachinger, Nikolas"]
[Black "Kosteniuk, Alexandra"]
[WhiteFideId "12962791"]
[BlackFideId "4128125"]
[WhiteElo "2253"]
[BlackElo "2469"]
[Result "0-1"]
[Round "11"]
[TimeControl "180+1"]
[Date "2022.07.05"]
[WhiteClock "0:00:03"]
[BlackClock "0:00:20"]

1. d4 {[%clk 0:03:00]}  Nf6 {[%clk 0:02:59]} 2. Nf3 {[%clk 0:03:00]}  e6 {[%clk 0:02:59]} 3. Bf4 {[%clk 0:03:00]}  d5 {[%clk 0:02:58]} 4. Nbd2 {[%clk 0:03:00]}  c5 {[%clk 0:02:58]} 5. e3 {[%clk 0:02:59]}  Nc6 {[%clk 0:02:59]} 6. c3 {[%clk 0:02:58]}  Bd6 {[%clk 0:02:59]} 7. Bg3 {[%clk 0:02:58]}  b6 {[%clk 0:02:56]} 8. Bd3 {[%clk 0:02:37]}  Bb7 {[%clk 0:02:55]} 9. O-O {[%clk 0:02:33]}  O-O {[%clk 0:02:54]} 10. e4 {[%clk 0:02:23]}  Bxg3 {[%clk 0:02:49]} 11. hxg3 {[%clk 0:02:20]}  dxe4 {[%clk 0:02:49]} 12. Nxe4 {[%clk 0:02:20]}  cxd4 {[%clk 0:02:46]} 13. cxd4 {[%clk 0:02:11]}  Nb4 {[%clk 0:02:44]} 14. Nxf6+ {[%clk 0:01:51]}  Qxf6 {[%clk 0:02:42]} 15. Qd2 {[%clk 0:01:44]}  Nxd3 {[%clk 0:02:33]} 16. Qxd3 {[%clk 0:01:45]}  Bxf3 {[%clk 0:02:33]} 17. gxf3 {[%clk 0:01:43]}  Rfd8 {[%clk 0:02:28]} 18. Rad1 {[%clk 0:01:42]}  Rd5 {[%clk 0:02:28]} 19. f4 {[%clk 0:01:32]}  Rad8 {[%clk 0:02:10]} 20. Qa6 {[%clk 0:01:23]}  Qe7 {[%clk 0:02:08]} 21. Rd2 {[%clk 0:01:13]}  Rxd4 {[%clk 0:02:03]} 22. Rxd4 {[%clk 0:01:12]}  Rxd4 {[%clk 0:02:03]} 23. Rc1 {[%clk 0:01:12]}  h5 {[%clk 0:01:56]} 24. Qc8+ {[%clk 0:01:07]}  Rd8 {[%clk 0:01:49]} 25. Qc7 {[%clk 0:01:05]}  Qd7 {[%clk 0:01:49]} 26. Qc2 {[%clk 0:00:54]}  g6 {[%clk 0:01:47]} 27. Qc3 {[%clk 0:00:54]}  Qd4 {[%clk 0:01:39]} 28. Qc7 {[%clk 0:00:43]}  Qd7 {[%clk 0:01:31]} 29. Qe5 {[%clk 0:00:41]}  Rc8 {[%clk 0:01:27]} 30. Rxc8+ {[%clk 0:00:25]}  Qxc8 {[%clk 0:01:28]} 31. a3 {[%clk 0:00:24]}  Qd8 {[%clk 0:01:25]} 32. Qc3 {[%clk 0:00:19]}  Qd1+ {[%clk 0:01:20]} 33. Kh2 {[%clk 0:00:19]}  Qd7 {[%clk 0:01:05]} 34. Qf6 {[%clk 0:00:19]}  Qe8 {[%clk 0:00:59]} 35. Kg2 {[%clk 0:00:18]}  Qf8 {[%clk 0:01:00]} 36. Kh2 {[%clk 0:00:17]}  Kh7 {[%clk 0:00:59]} 37. b4 {[%clk 0:00:16]}  a5 {[%clk 0:00:54]} 38. bxa5 {[%clk 0:00:15]}  bxa5 {[%clk 0:00:55]} 39. a4 {[%clk 0:00:16]}  Qe8 {[%clk 0:00:55]} 40. Kg2 {[%clk 0:00:13]}  Kg8 {[%clk 0:00:54]} 41. Qd4 {[%clk 0:00:14]}  Qc6+ {[%clk 0:00:53]} 42. Kh2 {[%clk 0:00:14]}  Qd5 {[%clk 0:00:53]} 43. Qa7 {[%clk 0:00:14]}  Kg7 {[%clk 0:00:47]} 44. Qe3 {[%clk 0:00:13]}  Kh7 {[%clk 0:00:30]} 45. Qc3 {[%clk 0:00:13]}  Qd8 {[%clk 0:00:30]} 46. Qc5 {[%clk 0:00:11]}  h4 {[%clk 0:00:30]} 47. Kh3 {[%clk 0:00:09]}  hxg3 {[%clk 0:00:30]} 48. Kxg3 {[%clk 0:00:09]}  Qd3+ {[%clk 0:00:29]} 49. Kg2 {[%clk 0:00:08]}  Qe4+ {[%clk 0:00:29]} 50. Kg3 {[%clk 0:00:07]}  Qxa4 {[%clk 0:00:29]} 51. Qe7 {[%clk 0:00:06]}  Qb3+ {[%clk 0:00:27]} 52. f3 {[%clk 0:00:06]}  Kg7 {[%clk 0:00:26]} 53. f5 {[%clk 0:00:05]}  exf5 {[%clk 0:00:23]} 54. Qe5+ {[%clk 0:00:06]}  Kh7 {[%clk 0:00:22]} 55. Qxa5 {[%clk 0:00:04]}  Qe3 {[%clk 0:00:20]} 56. Qc7 {[%clk 0:00:04]}  Qe6 {[%clk 0:00:20]} 57. Qf4 {[%clk 0:00:03]}  Qf6 {[%clk 0:00:20]} 58. Qc7 {[%clk 0:00:03]}  Kg7 {[%clk 0:00:20]} 59. Kf2 {[%clk 0:00:03]}  g5 {[%clk 0:00:20]} 60. Qd7 {[%clk 0:00:03]}  Kg6 {[%clk 0:00:21]} 61. Kg2 {[%clk 0:00:04]}  Qb2+ {[%clk 0:00:20]} 62. Kf1 {[%clk 0:00:03]}  Qb1+ {[%clk 0:00:20]} 63. Kg2 {[%clk 0:00:03]}  Qc2+ {[%clk 0:00:20]} 64. Kf1 {[%clk 0:00:04]}  Qc1+ {[%clk 0:00:21]} 65. Kg2 {[%clk 0:00:04]}  Qb2+ {[%clk 0:00:21]} 66. Kf1 {[%clk 0:00:05]}  Qe5 {[%clk 0:00:21]} 67. Qd3 {[%clk 0:00:04]}  Qf4 {[%clk 0:00:20]} 68. Kg2 {[%clk 0:00:05]}  Qe5 {[%clk 0:00:19]} 69. Qa6+ {[%clk 0:00:04]}  Qe6 {[%clk 0:00:19]} 70. Qd3 {[%clk 0:00:05]}  Kh5 {[%clk 0:00:19]} 71. Qd1 {[%clk 0:00:04]}  g4 {[%clk 0:00:19]} 72. Qh1+ {[%clk 0:00:04]}  Kg5 {[%clk 0:00:19]} 73. fxg4 {[%clk 0:00:03]}  fxg4 {[%clk 0:00:19]} 74. Qc1+ {[%clk 0:00:03]}  Kg6 {[%clk 0:00:19]} 75. Qc2+ {[%clk 0:00:04]}  Qf5 {[%clk 0:00:20]} 76. Qc6+ {[%clk 0:00:04]}  f6 {[%clk 0:00:20]} 77. Qc7 {[%clk 0:00:03]}  Qe4+ {[%clk 0:00:20]} 78. Kg3 {[%clk 0:00:03]}  Qf3+ {[%clk 0:00:20]} 79. Kh2 {[%clk 0:00:02]}  g3+ {[%clk 0:00:17]} 80. Qxg3+ {[%clk 0:00:01]}  Qxg3+ {[%clk 0:00:17]} 81. Kxg3 {[%clk 0:00:02]}  Kg5 {[%clk 0:00:18]} 82. Kf3 {[%clk 0:00:03]}  Kf5 {[%clk 0:00:18]} 83. Kf2 {[%clk 0:00:02]}  Kf4 {[%clk 0:00:19]} 84. Ke2 {[%clk 0:00:03]}  Kg3 {[%clk 0:00:19]} 85. Ke1 {[%clk 0:00:02]}  f5 {[%clk 0:00:18]} 86. Ke2 {[%clk 0:00:02]}  f4 {[%clk 0:00:19]} 87. Kf1 {[%clk 0:00:02]}  Kf3 {[%clk 0:00:19]} 88. Ke1 {[%clk 0:00:02]}  Kg2 {[%clk 0:00:19]} 89. Kd2 {[%clk 0:00:03]}  f3 {[%clk 0:00:20]} 0-1


[Site "https://www.chess.com"]

[Event "Titled Tuesday Blitz July 05 Late 2022"]
[White "Wartiovaara, Oliver"]
[Black "Derraugh, Geordie"]
[WhiteFideId "513024"]
[BlackFideId "2603950"]
[WhiteElo "1971"]
[BlackElo "2116"]
[Result "0-1"]
[Round "11"]
[TimeControl "180+1"]
[Date "2022.07.06"]
[WhiteClock "0:00:14"]
[BlackClock "0:00:23"]

1. d4 {[%clk 0:03:00]}  Nf6 {[%clk 0:02:59]} 2. Bf4 {[%clk 0:03:01]}  g6 {[%clk 0:02:57]} 3. e3 {[%clk 0:03:02]}  Bg7 {[%clk 0:02:57]} 4. h3 {[%clk 0:02:53]}  O-O {[%clk 0:02:57]} 5. c3 {[%clk 0:02:53]}  c5 {[%clk 0:02:57]} 6. dxc5 {[%clk 0:02:46]}  Ne4 {[%clk 0:02:55]} 7. Qd5 {[%clk 0:02:40]}  Nf6 {[%clk 0:02:50]} 8. Qf3 {[%clk 0:02:19]}  Na6 {[%clk 0:02:48]} 9. Bxa6 {[%clk 0:02:18]}  Qa5 {[%clk 0:02:42]} 10. Bxb7 {[%clk 0:02:01]}  Bxb7 {[%clk 0:02:41]} 11. Qxb7 {[%clk 0:02:01]}  Qxc5 {[%clk 0:02:41]} 12. Nf3 {[%clk 0:02:00]}  d6 {[%clk 0:02:41]} 13. Qb3 {[%clk 0:01:58]}  Qh5 {[%clk 0:02:39]} 14. Nbd2 {[%clk 0:01:55]}  Rab8 {[%clk 0:02:38]} 15. Qc2 {[%clk 0:01:55]}  Nd7 {[%clk 0:02:34]} 16. O-O {[%clk 0:01:54]}  e5 {[%clk 0:02:34]} 17. Bh2 {[%clk 0:01:53]}  f5 {[%clk 0:02:34]} 18. Nc4 {[%clk 0:01:51]}  Rf6 {[%clk 0:02:30]} 19. Rad1 {[%clk 0:01:50]}  Bf8 {[%clk 0:02:30]} 20. Rd5 {[%clk 0:01:44]}  Rc8 {[%clk 0:02:23]} 21. b3 {[%clk 0:01:35]}  Nc5 {[%clk 0:02:18]} 22. Rfd1 {[%clk 0:01:34]}  Ne4 {[%clk 0:02:18]} 23. Nfd2 {[%clk 0:01:15]}  Nxc3 {[%clk 0:02:15]} 24. g4 {[%clk 0:01:04]}  fxg4 {[%clk 0:01:52]} 25. Qxc3 {[%clk 0:01:03]}  gxh3 {[%clk 0:01:53]} 26. f3 {[%clk 0:00:52]}  Qg5+ {[%clk 0:01:47]} 27. Kf1 {[%clk 0:00:50]}  Qg2+ {[%clk 0:01:47]} 28. Ke1 {[%clk 0:00:51]}  Qxh2 {[%clk 0:01:46]} 29. Nf1 {[%clk 0:00:48]}  Qg1 {[%clk 0:01:35]} 30. Qd2 {[%clk 0:00:43]}  Rxf3 {[%clk 0:01:33]} 31. Qe2 {[%clk 0:00:40]}  h2 {[%clk 0:01:19]} 32. Qxf3 {[%clk 0:00:37]}  h1=Q {[%clk 0:01:19]} 33. Qxh1 {[%clk 0:00:37]}  Qxh1 {[%clk 0:01:19]} 34. Nxd6 {[%clk 0:00:34]}  Bxd6 {[%clk 0:01:16]} 35. Rxd6 {[%clk 0:00:35]}  Rc2 {[%clk 0:01:13]} 36. Rd8+ {[%clk 0:00:33]}  Kg7 {[%clk 0:01:13]} 37. R8d7+ {[%clk 0:00:32]}  Kh6 {[%clk 0:01:13]} 38. R7d2 {[%clk 0:00:32]}  Qh4+ {[%clk 0:01:01]} 39. Ke2 {[%clk 0:00:31]}  Qg4+ {[%clk 0:01:01]} 40. Kd3 {[%clk 0:00:28]}  Rxa2 {[%clk 0:00:56]} 41. Rxa2 {[%clk 0:00:18]}  Qxd1+ {[%clk 0:00:56]} 42. Nd2 {[%clk 0:00:19]}  Kg5 {[%clk 0:00:49]} 43. Rxa7 {[%clk 0:00:18]}  h5 {[%clk 0:00:49]} 44. b4 {[%clk 0:00:17]}  h4 {[%clk 0:00:49]} 45. b5 {[%clk 0:00:16]}  h3 {[%clk 0:00:28]} 46. b6 {[%clk 0:00:16]}  h2 {[%clk 0:00:27]} 47. b7 {[%clk 0:00:16]}  h1=Q {[%clk 0:00:23]} 48. b8=Q {[%clk 0:00:14]}  Qd5+ {[%clk 0:00:22]} 49. Kc3 {[%clk 0:00:14]}  Q1xd2# {[%clk 0:00:23]} 0-1


[Site "https://www.chess.com"]

[Event "Titled Tuesday Blitz July 05 Late 2022"]
[White "Winkels, Marcel"]
[Black "Kujawski, Adam"]
[WhiteFideId "1003887"]
[BlackFideId "1100920"]
[WhiteElo "1900"]
[BlackElo "1972"]
[Result "0-1"]
[Round "11"]
[TimeControl "180+1"]
[Date "2022.07.06"]
[WhiteClock "0:00:02"]
[BlackClock "0:00:03"]

1. e4 {[%clk 0:03:00]}  d6 {[%clk 0:02:59]} 2. d4 {[%clk 0:02:59]}  g6 {[%clk 0:03:00]} 3. Nc3 {[%clk 0:02:59]}  Bg7 {[%clk 0:03:00]} 4. Be3 {[%clk 0:02:57]}  Nd7 {[%clk 0:03:00]} 5. Qd2 {[%clk 0:02:55]}  h6 {[%clk 0:02:59]} 6. f4 {[%clk 0:02:49]}  e6 {[%clk 0:02:59]} 7. Nf3 {[%clk 0:02:49]}  Ne7 {[%clk 0:02:58]} 8. Bd3 {[%clk 0:02:40]}  O-O {[%clk 0:02:57]} 9. f5 {[%clk 0:02:32]}  exf5 {[%clk 0:02:56]} 10. Bxh6 {[%clk 0:02:31]}  fxe4 {[%clk 0:02:54]} 11. Bxg7 {[%clk 0:02:29]}  Kxg7 {[%clk 0:02:54]} 12. Nxe4 {[%clk 0:02:28]}  Nd5 {[%clk 0:02:50]} 13. O-O-O {[%clk 0:02:17]}  N7f6 {[%clk 0:02:50]} 14. h4 {[%clk 0:02:12]}  Bg4 {[%clk 0:02:44]} 15. c4 {[%clk 0:02:05]}  Nxe4 {[%clk 0:02:41]} 16. Bxe4 {[%clk 0:02:02]}  Nf6 {[%clk 0:02:40]} 17. Bd3 {[%clk 0:02:00]}  Qd7 {[%clk 0:02:35]} 18. Rde1 {[%clk 0:01:48]}  Rae8 {[%clk 0:02:35]} 19. d5 {[%clk 0:01:33]}  Bxf3 {[%clk 0:02:31]} 20. gxf3 {[%clk 0:01:32]}  Rh8 {[%clk 0:02:29]} 21. Qg5 {[%clk 0:01:13]}  Rh5 {[%clk 0:02:25]} 22. Qg3 {[%clk 0:01:09]}  Re7 {[%clk 0:02:14]} 23. f4 {[%clk 0:01:01]}  Qe8 {[%clk 0:02:11]} 24. f5 {[%clk 0:00:58]}  Ne4 {[%clk 0:01:59]} 25. Bxe4 {[%clk 0:00:48]}  Rxe4 {[%clk 0:01:57]} 26. fxg6 {[%clk 0:00:38]}  fxg6 {[%clk 0:01:55]} 27. Qc3+ {[%clk 0:00:37]}  Kh7 {[%clk 0:01:40]} 28. Rxe4 {[%clk 0:00:32]}  Qxe4 {[%clk 0:01:39]} 29. Re1 {[%clk 0:00:33]}  Qf4+ {[%clk 0:01:38]} 30. Kb1 {[%clk 0:00:32]}  Re5 {[%clk 0:01:25]} 31. Rxe5 {[%clk 0:00:21]}  dxe5 {[%clk 0:01:24]} 32. Qb4 {[%clk 0:00:18]}  Qxh4 {[%clk 0:00:51]} 33. b3 {[%clk 0:00:17]}  e4 {[%clk 0:00:40]} 34. Qf8 {[%clk 0:00:15]}  Qe1+ {[%clk 0:00:25]} 35. Kb2 {[%clk 0:00:15]}  Qd2+ {[%clk 0:00:24]} 36. Ka3 {[%clk 0:00:14]}  e3 {[%clk 0:00:24]} 37. Qf7+ {[%clk 0:00:12]}  Kh6 {[%clk 0:00:24]} 38. Qf8+ {[%clk 0:00:11]}  Kg5 {[%clk 0:00:24]} 39. Qe7+ {[%clk 0:00:10]}  Kg4 {[%clk 0:00:23]} 40. Qd7+ {[%clk 0:00:10]}  Kg3 {[%clk 0:00:22]} 41. Qxc7+ {[%clk 0:00:09]}  Kf2 {[%clk 0:00:22]} 42. d6 {[%clk 0:00:09]}  e2 {[%clk 0:00:22]} 43. d7 {[%clk 0:00:09]}  e1=Q {[%clk 0:00:21]} 44. d8=Q {[%clk 0:00:09]}  Qdc1+ {[%clk 0:00:10]} 45. Ka4 {[%clk 0:00:08]}  Qee3 {[%clk 0:00:06]} 46. Qf8+ {[%clk 0:00:06]}  Ke1 {[%clk 0:00:05]} 47. Qh2 {[%clk 0:00:04]}  Qcd2 {[%clk 0:00:04]} 48. Qxd2+ {[%clk 0:00:02]}  Qxd2 {[%clk 0:00:03]} 49. Qe7+ {[%clk 0:00:02]}  Kd1 {[%clk 0:00:03]} 0-1


[Site "https://www.chess.com"]

[Event "Titled Tuesday Blitz July 05 Late 2022"]
[White "Zajic, Milan"]
[Black "Jaskolka, Tomasz"]
[WhiteFideId "912336"]
[BlackFideId "1170791"]
[WhiteElo "2445"]
[BlackElo "2073"]
[Result "0-1"]
[Round "11"]
[TimeControl "180+1"]
[Date "2022.07.06"]
[WhiteClock "0:00:01"]
[BlackClock "0:00:07"]

1. e4 {[%clk 0:00:47]}  c5 {[%clk 0:02:58]} 2. Nf3 {[%clk 0:00:47]}  e6 {[%clk 0:02:55]} 3. d4 {[%clk 0:00:47]}  cxd4 {[%clk 0:02:56]} 4. Nxd4 {[%clk 0:00:47]}  Nc6 {[%clk 0:02:57]} 5. Nc3 {[%clk 0:00:47]}  Qc7 {[%clk 0:02:57]} 6. f4 {[%clk 0:00:45]}  a6 {[%clk 0:02:54]} 7. Nxc6 {[%clk 0:00:45]}  Qxc6 {[%clk 0:02:53]} 8. Bd3 {[%clk 0:00:46]}  Nf6 {[%clk 0:02:36]} 9. Qe2 {[%clk 0:00:44]}  b5 {[%clk 0:02:34]} 10. e5 {[%clk 0:00:44]}  Nd5 {[%clk 0:02:31]} 11. Nxd5 {[%clk 0:00:45]}  exd5 {[%clk 0:02:31]} 12. Be3 {[%clk 0:00:44]}  Bb7 {[%clk 0:02:27]} 13. O-O-O {[%clk 0:00:43]}  Bc5 {[%clk 0:02:21]} 14. Qf2 {[%clk 0:00:39]}  d4 {[%clk 0:02:16]} 15. Bxd4 {[%clk 0:00:38]}  Bxd4 {[%clk 0:02:16]} 16. Qxd4 {[%clk 0:00:38]}  Qxg2 {[%clk 0:02:13]} 17. Rhg1 {[%clk 0:00:33]}  Qxh2 {[%clk 0:02:11]} 18. Rxg7 {[%clk 0:00:19]}  Bc6 {[%clk 0:02:01]} 19. Kb1 {[%clk 0:00:13]}  Rc8 {[%clk 0:01:58]} 20. Bf5 {[%clk 0:00:13]}  Kf8 {[%clk 0:01:33]} 21. e6 {[%clk 0:00:13]}  dxe6 {[%clk 0:01:24]} 22. Qf6 {[%clk 0:00:12]}  Be8 {[%clk 0:01:17]} 23. Be4 {[%clk 0:00:06]}  Qe2 {[%clk 0:01:03]} 24. Rxf7+ {[%clk 0:00:03]}  Bxf7 {[%clk 0:01:02]} 25. Qh6+ {[%clk 0:00:02]}  Ke8 {[%clk 0:00:59]} 26. Qh1 {[%clk 0:00:02]}  Qc4 {[%clk 0:00:35]} 27. b3 {[%clk 0:00:02]}  Qc7 {[%clk 0:00:33]} 28. f5 {[%clk 0:00:03]}  e5 {[%clk 0:00:29]} 29. f6 {[%clk 0:00:02]}  h5 {[%clk 0:00:19]} 30. Qg1 {[%clk 0:00:01]}  Rg8 {[%clk 0:00:17]} 31. Qe3 {[%clk 0:00:01]}  h4 {[%clk 0:00:17]} 32. Bf5 {[%clk 0:00:01]}  Rd8 {[%clk 0:00:15]} 33. Re1 {[%clk 0:00:01]}  Rg3 {[%clk 0:00:11]} 34. Qh6 {[%clk 0:00:02]}  Qc3 {[%clk 0:00:09]} 35. Qh8+ {[%clk 0:00:02]}  Rg8 {[%clk 0:00:09]} 36. Qxh4 {[%clk 0:00:02]}  Rd4 {[%clk 0:00:08]} 37. Rxe5+ {[%clk 0:00:01]}  Kd8 {[%clk 0:00:08]} 38. Qf2 {[%clk 0:00:01]}  Rd1# {[%clk 0:00:07]} 0-1


[Site "https://www.chess.com"]